{"text_format":"3","workbook":"xlsx","n_sheets":4,"sheets":["Nadzorna plošča","Osnovna sredstva","Obveznosti","izračuni"],"not_rendered":{"charts":4,"defined_names":4},"read":"whole","date_system":"1900"}

{"sheet":"Nadzorna plošča","index":0,"n_rows":16,"n_cols":8,"rows_kept":16}
[]
[null,"NADZORNA PLOŠČA",{"$nulls":4},"POVZETEK NETO VREDNOSTI"," "]
{"$rows_empty":8}
[null,{"$f":"NetVrednost","v":{"v":159600,"d":"159,600 €"}},null,{"$f":"SredstvaSkupaj","v":{"v":380800,"d":"380,800 €"}},null,null,{"$f":"ObveznostiSkupaj","v":{"v":221200,"d":"221,200 €"}}]
[null,"NETO VREDNOST",null,"SKUPAJ SREDSTEV",null,null,"SKUPAJ OBVEZNOSTI"]
[{"$nulls":3},"GOTOVINA",null,null,"NEZAVAROVANO"]
[{"$nulls":3},"NALOŽBE",null,null,"ZAVAROVANO"]
[{"$nulls":3},"UPOKOJITEV"]
[{"$nulls":3},"OSEBNO"]

{"sheet":"Osnovna sredstva","index":1,"n_rows":24,"n_cols":10,"rows_kept":24,"merged":[[11,1,12,1],[13,1,14,1],[14,2,14,4],[14,6,14,8],[25,2,25,4],[25,6,25,8]]}
[]
[null,"SREDSTVA",{"$nulls":5},"POVZETEK NETO VREDNOSTI",null," "]
[]
[null,null," ","GOTOVINA","VREDNOST",null," ","OSEBNO","VREDNOST"]
[{"$nulls":3},"GOTOVINA V BLAGAJNI",{"v":2000,"d":"2,000"},null,null,"STALNO PREBIVALIŠČE",{"v":233000,"d":"233,000"}]
[{"$nulls":3},"TEKOČI RAČUNI",{"v":2500,"d":"2,500"},null,null,"ZAČASNO PREBIVALIŠČE"]
[{"$nulls":3},"VARČEVALNI RAČUN",{"v":4000,"d":"4,000"},null,null,"ZBIRATELJSKI PREDMETI"]
[{"$nulls":3},"RAČUNI DENARNEGA TRGA",{"v":3300,"d":"3,300"},null,null,"AVTOMOBILI",{"v":32000,"d":"32,000"}]
[{"$nulls":3},"SKLADI DENARNEGA TRGA",{"v":7000,"d":"7,000"},null,null,"POHIŠTVO",{"v":10000,"d":"10,000"}]
[{"$nulls":3},"POTRDILA O VLOGI",{"$nulls":3},"KRZNO IN NAKIT"]
[{"$nulls":3},"AMERIŠKE ZAKLADNE MENICE",{"$nulls":3},"DRUGA SREDSTVA",{"v":1500,"d":"1,500"}]
[null,{"$f":"SredstvaSkupaj","v":{"v":380800,"d":"380,800 €"}},null,"GOTOVINSKA VREDNOST ŽIVLJENJSKEGA ZAVAROVANJA",{"v":24500,"d":"24,500"}]
[{"$nulls":3},"DELNA VSOTA",{"$f":"SUBTOTAL(109,tblGotovina[VREDNOST])","v":{"v":43300,"d":"43,300"}},null,null,"DELNA VSOTA",{"$f":"SUBTOTAL(109,tblOsebno[VREDNOST])","v":{"v":276500,"d":"276,500"}}]
[null,"SKUPAJ SREDSTEV"]
[]
[]
[null,null," ","NALOŽBE","VREDNOST",null," ","UPOKOJITEV","VREDNOST"]
[{"$nulls":3},"DELNICE",{"v":15000,"d":"15,000"},null,null,"POKOJNINA"]
[{"$nulls":3},"OBVEZNICE",{"$nulls":3},"INDIVIDUALNI POKOJNINSKI SKLADI"]
[{"$nulls":3},"NALOŽBE VZAJEMNEGA SKLADA",{"$nulls":3},"POKOJNINSKI RAČUNI KEOGH"]
[{"$nulls":3},"DELEŽI V PODJETJU",{"$nulls":3},"401K",{"v":46000,"d":"46,000"}]
[{"$nulls":3},"DRUGE NALOŽBE",{"$nulls":3},"PAKETI VREDNOSTNIH PAPIRJEV"]
[{"$nulls":7},"ESOP"]
[{"$nulls":3},"DELNA VSOTA",{"$f":"SUBTOTAL(109,tblNaložbe[VREDNOST])","v":{"v":15000,"d":"15,000"}},null,null,"DELNA VSOTA",{"$f":"SUBTOTAL(109,tblPokojnina[VREDNOST])","v":{"v":46000,"d":"46,000"}}]

{"sheet":"Obveznosti","index":2,"n_rows":14,"n_cols":10,"rows_kept":14,"merged":[[11,1,12,1],[13,1,14,1]]}
[]
[null,"OBVEZNOSTI",{"$nulls":5},"POVZETEK NETO VREDNOSTI",null," "]
[]
[null,null," ","NEZAVAROVANO","DOLG",null," ","ZAVAROVANO","DOLG"]
[{"$nulls":3},"KREDITNE KARTICE",{"v":1200,"d":"1,200"},null,null,"Avtomobilski krediti",{"v":14500,"d":"14,500"}]
[{"$nulls":3},"ODPRTI RAČUNI",{"v":3000,"d":"3,000"},null,null,"Posojila za avtodom"]
[{"$nulls":3},"ŠTUDENTSKA POSOJILA",{"v":17500,"d":"17,500"},null,null,"Potrošniški kredit"]
[{"$nulls":3},"PREŽIVNINA ZA BIVŠEGA ZAKONCA",{"$nulls":3},"Hipoteke",{"v":144000,"d":"144,000"}]
[{"$nulls":3},"PREŽIVNINA ZA OTROKA",{"$nulls":3},"Gospodinjska posojila",{"v":21000,"d":"21,000"}]
[{"$nulls":3},"DAVČNA OBVEZNOST",{"v":8000,"d":"8,000"},null,null,"Druga posojila"]
[{"$nulls":3},"DRUGO",{"v":6000,"d":"6,000"},null,null,"Davčna obveznost",{"v":4000,"d":"4,000"}]
[null,{"$f":"ObveznostiSkupaj","v":{"v":221200,"d":"221,200 €"}},{"$nulls":5},"Drugo",{"v":2000,"d":"2,000"}]
[{"$nulls":3},"DELNA VSOTA",{"$f":"SUBTOTAL(109,tblNezavarovano[DOLG])","v":{"v":35700,"d":"35,700"}},null,null,"DELNA VSOTA",{"$f":"SUBTOTAL(109,tblZavarovano[DOLG])","v":{"v":185500,"d":"185,500"}}]
[null,"SKUPAJ SREDSTEV"]

{"sheet":"izračuni","index":3,"n_rows":23,"n_cols":3,"rows_kept":23,"hidden":true}
[]
[null,"*** Ta list bi moral ostati skrit ***"]
{"$rows_empty":8}
[null,{"$f":"tblGotovina[[#Headers],[GOTOVINA]]","v":"GOTOVINA"},{"$f":"SUM(tblGotovina[VREDNOST])","v":{"v":43300,"d":"43,300 €"}}]
[null,{"$f":"tblNaložbe[[#Headers],[NALOŽBE]]","v":"NALOŽBE"},{"$f":"SUM(tblNaložbe[VREDNOST])","v":{"v":15000,"d":"15,000 €"}}]
[null,{"$f":"tblPokojnina[[#Headers],[UPOKOJITEV]]","v":"UPOKOJITEV"},{"$f":"SUM(tblPokojnina[VREDNOST])","v":{"v":46000,"d":"46,000 €"}}]
[null,{"$f":"tblOsebno[[#Headers],[OSEBNO]]","v":"OSEBNO"},{"$f":"SUM(tblOsebno[VREDNOST])","v":{"v":276500,"d":"276,500 €"}}]
[null,"Skupaj sredstev",{"$f":"SUM(tblGotovina[VREDNOST],tblNaložbe[VREDNOST],tblPokojnina[VREDNOST],tblOsebno[VREDNOST])","v":{"v":380800,"d":"380,800 €"}}]
[]
[]
[null,{"$f":"tblNezavarovano[[#Headers],[NEZAVAROVANO]]","v":"NEZAVAROVANO"},{"$f":"SUM(tblNezavarovano[DOLG])","v":{"v":35700,"d":"35,700 €"}}]
[null,{"$f":"tblZavarovano[[#Headers],[ZAVAROVANO]]","v":"ZAVAROVANO"},{"$f":"SUM(tblZavarovano[DOLG])","v":{"v":185500,"d":"185,500 €"}}]
[null,"Skupaj obveznosti",{"$f":"SUM(tblNezavarovano[DOLG],tblZavarovano[DOLG])","v":{"v":221200,"d":"221,200 €"}}]
[]
[]
[null,"Neto vrednost",{"$f":"C15-C20","v":{"v":159600,"d":"159,600 €"}}]